bitfinex-derivatives/quotes_ETHF0:USTF0_20240915
["timestamp","ask_amount","ask_price","bid_price","bid_amount"]
[1726361981102,0.4052,2420.8,2420.7,0.87491885]
[1726361983501,0.4052,2420.8,2420.7,0.33036]
[1726362001215,3.7947894,2421.1,2421.0,0.33032]
[1726362001216,4.06157663,2421.1,2421.0,0.33032]
[1726362001412,0.3969,2421.1,2421.0,0.33032]
[1726362003915,3.25267663,2421.3,2421.2,0.33029]
[1726362004217,3.25267663,2421.3,2421.0,15.37255622]
[1726362004218,2.70867904,2421.4,2421.3,0.33028]
[1726362004526,4.43307663,2421.7,2421.4,0.33025]
[1726362004817,6.25330663,2421.7,2421.3,0.33027]
[1726362005017,2.70676911,2421.4,2421.2,2.19789]
[1726362005218,1.1804,2421.3,2421.2,0.70789]
[1726362005521,3.34521217,2421.3,2421.2,0.70789]
[1726362005907,1.1804,2421.3,2421.2,0.70789]
[1726362006321,3.34523138,2421.3,2421.2,0.70789]
[1726362008018,3.34523138,2421.3,2421.2,2.19789]
[1726362009422,1.1804,2421.3,2421.2,2.19789]
[1726362009619,0.3895,2421.3,2421.2,2.19789]
[1726362009827,2.16483138,2421.4,2421.3,0.33028]
[1726362010120,2.16483138,2421.4,2421.3,1.82028]
[1726362010721,2.16483138,2421.5,2421.4,0.33027]
[1726362010914,2.16483138,2421.6,2421.3,3.2078]
[1726362011109,1.62185115,2421.4,2421.3,5.02808]
[1726362011724,2.00095115,2421.4,2421.3,5.02808]
[1726362013517,2.00095115,2421.4,2421.3,1.82028]
[1726362017825,2.00095115,2421.4,2421.3,0.33028]
[1726362018019,2.00095115,2421.4,2421.3,1.82028]
[1726362019420,2.00095115,2421.4,2421.3,0.33028]
[1726362020025,2.00095115,2421.4,2421.2,4.6978]
[1726362020228,1.62185115,2421.3,2421.2,5.02808]
[1726362020931,2.00095115,2421.4,2421.2,5.02808]
[1726362021733,2.00095115,2421.4,2421.2,1.82028]
[1726362022137,2.00095115,2421.4,2421.3,0.33028]
[1726362023433,0.3791,2421.4,2421.3,0.33028]
[1726362026321,0.3791,2421.4,2421.3,0.72478]
[1726362031429,2.54393138,2421.4,2421.3,0.72478]
[1726362031645,2.54393138,2421.4,2421.2,1.49]
[1726362031840,1.6207286,2421.3,2421.2,1.82029]
[1726362032335,2.54393138,2421.4,2421.3,0.33028]
[1726362033041,2.54393138,2421.4,2421.3,0.71668]
[1726362034633,0.3791,2421.4,2421.3,0.71668]
[1726362034932,2.00005639,2421.4,2421.3,0.71668]
[1726362035133,2.00005128,2421.4,2421.3,0.71668]
[1726362035340,0.3791,2421.4,2421.3,0.71668]
[1726362035858,1.62102368,2421.4,2421.3,6.33628]
[1726362036038,2.54003138,2421.5,2421.4,0.33027]
[1726362036039,1.62102368,2421.5,2421.4,0.33027]
[1726362039437,1.62102368,2421.6,2421.5,0.33025]
[1726362039638,1.62102368,2421.6,2421.5,1.82025]
[1726362039841,1.62102368,2421.6,2421.5,5.94985]
[1726362040026,1.62102368,2421.6,2421.5,9.15765]
[1726362040233,2.02022368,2421.7,2421.6,0.33024]
[1726362042646,0.3992,2421.7,2421.6,0.33024]
[1726362043738,0.3992,2421.7,2421.6,0.72754]
[1726362044335,1.62102368,2421.8,2421.7,0.33023]
[1726362044540,1.62102368,2421.8,2421.7,5.94983]
[1726362045344,2.16221174,2421.8,2421.7,5.6196]
[1726362045844,1.6218146,2421.8,2421.7,5.94983]
[1726362046041,2.16221174,2421.9,2421.8,0.33021]
[1726362046243,2.16221174,2421.9,2421.8,3.53801]
[1726362048451,2.56271174,2421.9,2421.8,3.53801]
[1726362049741,0.4005,2421.9,2421.8,5.02801]
[1726362050451,2.56254743,2421.9,2421.8,5.02801]
[1726362050949,2.56249249,2421.9,2421.8,5.02801]
[1726362053045,2.56249249,2421.9,2421.8,1.82021]
[1726362053246,0.4005,2421.9,2421.8,1.82021]
[1726362055644,2.02155754,2421.9,2421.8,1.82021]
[1726362056044,0.4005,2421.9,2421.8,1.82021]
[1726362058957,2.02137038,2421.9,2421.8,1.82021]
[1726362065355,2.02137038,2421.9,2421.7,0.3972]
[1726362065356,2.02137038,2421.9,2421.7,0.33023]
[1726362065557,2.02267038,2421.8,2421.7,0.33023]
[1726362065759,2.41397038,2421.8,2421.7,0.33023]
[1726362068256,0.7931,2421.8,2421.7,0.33023]
[1726362068456,2.95509249,2421.8,2421.7,0.33023]
[1726362069255,0.7931,2421.8,2421.6,3.53803]
[1726362069455,2.1614311,2421.7,2421.6,3.53803]
[1726362069660,2.4916611,2421.7,2421.4,0.33026]
[1726362069958,7.62946911,2421.8,2421.4,0.33026]
[1726362069959,1.62119105,2421.5,2421.4,0.33026]
[1726362070161,1.62119105,2421.5,2421.4,1.82026]
[1726362070360,0.7623,2421.5,2421.4,1.82026]
[1726362071161,2.38356656,2421.5,2421.4,1.82026]
[1726362071365,0.7623,2421.5,2421.4,1.82026]
[1726362072076,2.92388807,2421.5,2421.4,1.82026]
[1726362075374,0.7623,2421.5,2421.4,1.82026]
[1726362075674,2.38438292,2421.5,2421.4,1.82026]
[1726362077267,0.7623,2421.5,2421.4,1.82026]
[1726362078171,2.92388807,2421.5,2421.4,1.82026]
[1726362080274,0.7623,2421.5,2421.4,1.82026]
[1726362080464,2.92625983,2421.5,2421.4,1.82026]
[1726362081375,0.7623,2421.5,2421.4,1.82026]
[1726362082095,2.92638955,2421.5,2421.4,1.82026]
[1726362083675,0.7623,2421.5,2421.4,1.82026]
[1726362083870,3.46906911,2421.5,2421.4,1.82026]
[1726362084777,0.7623,2421.5,2421.4,1.82026]
[1726362085172,3.46906911,2421.5,2421.4,1.82026]
[1726362085375,0.7623,2421.5,2421.4,1.82026]
[1726362088580,2.92569557,2421.5,2421.4,1.82026]
[1726362088781,0.7623,2421.5,2421.4,1.82026]
[1726362089376,2.92563398,2421.5,2421.4,1.82026]
[1726362089884,0.7623,2421.5,2421.4,1.82026]
[1726362090180,2.92559494,2421.5,2421.4,1.82026]
[1726362091082,0.7623,2421.5,2421.4,1.82026]
[1726362091282,2.92551909,2421.5,2421.4,1.82026]
[1726362098883,2.54811909,2421.5,2421.4,1.82026]
[1726362099198,6.46047663,2421.9,2421.4,1.82026]
[1726362099199,0.096,2422.2,2421.5,4.1296]
[1726362099488,0.096,2422.3,2422.1,1.49]
[1726362099489,0.8136,2422.3,2422.1,1.49]
[1726362099676,0.8136,2422.3,2422.2,0.3957]
[1726362099877,0.8136,2422.3,2422.2,1.8857]
[1726362101579,0.8136,2422.3,2422.2,0.3957]
[1726362101988,0.8136,2422.3,2422.2,1.8857]
[1726362103083,0.192,2422.8,2422.2,2.21586]
[1726362103390,4.33244098,2423.3,2422.6,0.3301]
[1726362103391,0.3909,2422.7,2422.6,0.3301]
[1726362103593,0.3909,2422.7,2422.6,5.0279]
[1726362103783,0.3909,2422.7,2422.6,4.6978]
[1726362104289,0.3909,2422.7,2422.6,5.0881]
[1726362104793,0.3909,2422.7,2422.6,5.4182]
[1726362110098,0.7861,2423.0,2422.7,0.33009]
[1726362110285,0.3967,2422.9,2422.8,1.49]
[1726362110893,0.3967,2422.9,2422.8,1.82008]
[1726362111095,3.3038,2423.5,2423.0,0.33004]
[1726362111300,0.3967,2423.3,2423.2,1.49]
[1726362111492,0.3967,2423.3,2423.2,1.82002]
[1726362111891,0.3967,2423.3,2423.2,1.49]
[1726362114593,0.3967,2423.3,2423.2,1.82002]
[1726362125008,0.3967,2423.3,2423.2,0.33002]
[1726362128104,0.3967,2423.3,2423.2,3.53782]
[1726362136811,0.3831,2423.4,2423.3,0.33001]
[1726362137106,0.3831,2423.4,2423.3,1.82001]
[1726362137612,0.3831,2423.4,2423.3,5.94641]
[1726362139113,0.3831,2423.4,2423.3,1.82001]
[1726362146913,0.3831,2423.4,2423.2,3.2078]
[1726362147114,0.7846,2423.3,2423.0,1.49]
[1726362147322,0.7846,2423.3,2423.2,1.82002]
[1726362147510,0.7846,2423.3,2423.2,4.6978]
[1726362149721,0.7846,2423.3,2423.2,5.02782]
[1726362155120,0.7846,2423.3,2422.9,3.2078]
[1726362155428,0.7846,2423.3,2423.1,1.49]
[1726362156130,0.7846,2423.3,2423.1,1.82003]
[1726362156516,0.7846,2423.3,2423.1,1.49]
[1726362156919,4.1264,2423.2,2423.1,1.49]
[1726362157223,4.1264,2423.2,2422.7,1.49]
[1726362157436,4.1264,2423.2,2422.7,1.82008]
[1726362157437,0.33004,2423.1,2422.7,1.82008]
[1726362157727,3.55465189,2423.2,2422.8,0.33007]
[1726362157924,3.22462189,2422.9,2422.8,0.33007]
[1726362158424,7.75602189,2422.9,2422.8,0.33007]
[1726362159314,3.62882189,2422.9,2422.8,0.33007]
[1726362159515,0.4042,2422.9,2422.8,0.33007]
[1726362159720,0.4042,2422.9,2422.8,0.74057]
[1726362163026,0.4042,2422.9,2422.8,0.33007]
[1726362165920,0.4042,2422.9,2422.8,1.49]
[1726362166120,4.5314,2422.9,2422.8,1.49]
[1726362166521,10.86147,2422.9,2422.6,4.6978]
[1726362166740,0.3833,2422.8,2422.6,4.6978]
[1726362167633,0.3833,2422.8,2422.6,5.0279]
[1726362169727,0.3833,2422.8,2422.6,4.6978]
[1726362173336,0.3833,2422.8,2422.7,1.49]
[1726362173543,4.5105,2422.8,2422.7,1.49]
[1726362175738,4.5105,2422.8,2422.7,1.8649]
[1726362179846,0.3833,2422.8,2422.7,1.8649]
[1726362180042,4.5105,2422.8,2422.7,1.8649]
[1726362183436,0.3833,2422.8,2422.7,2.19499]
[1726362184338,0.3833,2422.8,2422.7,1.8649]
[1726362185041,0.3833,2422.8,2422.7,2.19499]
[1726362193743,0.3833,2422.8,2422.7,1.8649]
[1726362194843,3.22462189,2423.2,2422.7,5.9921]
[1726362195155,0.4122,2423.3,2423.2,0.33002]
[1726362195342,0.4122,2423.3,2423.2,5.41122]
[1726362196146,0.4122,2423.3,2423.2,5.0812]
[1726362197858,0.4122,2423.3,2423.2,1.8734]
[1726362198652,0.4122,2423.3,2423.2,1.49]
[1726362204959,4.5386,2423.3,2423.0,1.49]
[1726362205161,0.4122,2423.3,2423.0,1.49]
[1726362205966,0.4122,2423.3,2423.0,1.82004]
[1726362208366,0.4122,2423.3,2423.0,2.20924]
[1726362209563,0.4122,2423.3,2423.0,0.3892]
[1726362209564,3.96683189,2423.3,2423.0,0.3892]
[1726362210155,3.96683189,2423.3,2423.0,1.8792]
[1726362211163,0.74221,2423.3,2423.0,1.8792]
[1726362215172,0.33002,2423.2,2423.0,1.8792]
[1726362215472,0.74221,2423.3,2423.0,1.8792]
[1726362215671,0.4124,2423.1,2423.0,1.8792]
[1726362216267,0.4124,2423.1,2423.0,2.20925]
[1726362217369,0.4124,2423.1,2422.6,7.9306]
[1726362217370,15.2374,2423.1,2422.6,1.27155932]
[1726362217570,0.3301,2422.7,2422.5,0.378]
[1726362217764,1.2125,2422.6,2422.5,0.378]
[1726362218168,1.2125,2422.6,2422.5,1.868]
[1726362218574,1.5426,2422.6,2422.5,1.868]
[1726362218761,1.2125,2422.6,2422.5,1.868]
[1726362219278,1.5426,2422.6,2422.3,1.49]
[1726362219465,1.5426,2422.6,2422.3,1.8814]
[1726362220270,1.2125,2422.6,2422.3,1.8814]
[1726362220570,0.33012,2422.5,2422.3,1.8814]
[1726362224077,1.54261,2422.6,2422.3,1.8814]
[1726362224574,1.54261,2422.6,2422.4,1.49]
[1726362225873,0.33012,2422.5,2422.4,1.49]
[1726362226880,1.54261,2422.6,2422.4,1.49]
[1726362228083,1.2125,2422.6,2422.4,1.49]
[1726362228279,1.54261,2422.6,2422.4,1.49]
[1726362229684,1.2125,2422.6,2422.4,1.49]
[1726362230082,0.8094,2422.6,2422.4,1.8858]
[1726362230278,0.8094,2422.6,2422.4,2.21593]
[1726362232485,1.2016,2422.6,2422.4,2.21593]
[1726362241087,1.2016,2422.6,2422.4,1.8858]
[1726362241088,1.5317,2422.6,2422.4,1.8858]
[1726362241685,1.2016,2422.6,2422.4,1.8858]
[1726362244801,1.2016,2422.6,2422.4,2.21593]
[1726362246896,1.2016,2422.6,2422.4,1.8858]
[1726362246897,1.5317,2422.6,2422.4,1.8858]
[1726362247105,1.5317,2422.6,2422.4,1.49]
[1726362247494,1.5317,2422.6,2422.3,2.21154]
[1726362248299,4.23430588,2422.6,2422.3,2.21154]
[1726362248501,4.23430588,2422.6,2422.3,1.8814]
[1726362249809,3.90420588,2422.6,2422.3,0.3914]
[1726362250001,2.70260588,2422.4,2422.3,0.3914]
[1726362250209,5.91040588,2422.4,2422.3,0.3914]
[1726362250703,2.70260588,2422.4,2422.3,0.3914]
[1726362250906,2.70260588,2422.4,2422.1,1.49]
[1726362250907,3.03274588,2422.4,2422.1,1.49]
[1726362251209,0.3836,2422.3,2422.2,0.373]
[1726362252014,0.71374,2422.3,2422.2,0.373]
[1726362252207,3.08620588,2422.3,2422.2,0.373]
[1726362253119,0.3836,2422.3,2422.2,0.373]
[1726362253303,2.70260588,2422.3,2422.2,1.863]
[1726362253509,2.70260588,2422.5,2422.2,2.19315]
[1726362253808,3.03272588,2422.5,2422.2,2.19315]
[1726362254008,3.03272588,2422.5,2422.2,1.863]
[1726362254418,3.03272588,2422.5,2422.2,2.19315]
[1726362254713,3.03272588,2422.5,2422.2,1.863]
[1726362258513,3.03273588,2422.4,2422.2,0.373]
[1726362258902,0.4122,2422.3,2422.2,0.373]
[1726362260508,3.11480588,2422.3,2422.2,0.373]
[1726362263310,0.4122,2422.3,2422.2,0.373]
[1726362264310,0.4122,2422.3,2421.8,8.97145932]
[1726362264519,3.2078,2422.4,2421.8,8.97145932]
[1726362264520,2.70636889,2422.1,2421.9,0.98136376]
[1726362264815,2.70636889,2422.1,2422.0,1.82018]
[1726362265711,2.70636889,2422.1,2422.0,1.49]
[1726362265913,2.70636889,2422.1,2422.0,1.82018]
[1726362266311,3.09226889,2422.2,2422.0,1.82018]
[1726362266818,2.70636889,2422.1,2422.0,1.82018]
[1726362268015,3.09226889,2422.2,2422.0,1.82018]
[1726362268917,2.70636889,2422.1,2422.0,1.82018]
[1726362269317,3.09226889,2422.2,2422.0,1.82018]
[1726362274214,3.09226889,2422.2,2422.1,0.33017]
[1726362278324,0.3859,2422.2,2422.1,0.33017]
[1726362279217,3.09226889,2422.2,2422.1,0.33017]
[1726362282622,0.3859,2422.2,2422.1,0.33017]
[1726362284330,0.3859,2422.2,2422.0,1.82018]
[1726362284732,0.4039,2422.1,2422.0,1.82018]
[1726362293634,3.94916189,2422.4,2422.3,0.33014]
[1726362293635,0.3944,2422.4,2422.3,0.33014]
[1726362293838,0.3781,2422.5,2422.4,0.33013]
[1726362294336,0.3781,2422.5,2422.4,0.71993]
[1726362294937,0.3781,2422.5,2422.4,2.20993]
[1726362298239,0.3781,2422.5,2422.4,1.8798]
[1726362300240,0.70822,2422.5,2422.2,3.2078]
[1726362301035,0.70822,2422.5,2422.3,1.49]
[1726362302444,0.3781,2422.5,2422.2,3.2078]
[1726362302650,0.3781,2422.5,2422.0,1.8817]
[1726362302651,7.7139,2422.5,2422.0,1.8817]
[1726362302849,7.7139,2422.5,2422.0,2.21188]
[1726362302850,0.33014,2422.4,2422.0,2.21188]
[1726362303040,0.3979,2422.3,2422.0,2.21188]
[1726362303242,0.7818,2422.3,2422.0,2.21188]
[1726362303442,0.7818,2422.3,2422.2,1.49]
[1726362305648,1.11194,2422.3,2422.2,1.49]
[1726362305848,0.7818,2422.3,2421.9,3.2078]
[1726362306042,3.2078,2422.2,2421.7,5.92947932]
[1726362306242,0.4064,2422.1,2421.8,1.49]
[1726362306644,0.4128,2422.0,2421.8,1.49]
[1726362306948,0.4012,2421.9,2421.7,5.00727932]
[1726362307147,0.4012,2421.9,2421.8,1.49]
[1726362307347,0.4012,2421.9,2421.7,4.67705932]
[1726362307542,0.4012,2421.9,2421.8,1.49]
[1726362309244,0.4012,2421.9,2421.7,0.3897]
[1726362309448,0.33022,2421.8,2421.5,1.07955932]
[1726362309655,0.3975,2421.7,2421.4,2.98115932]
[1726362309951,0.3975,2421.7,2421.4,1.9016]
[1726362310155,0.3959,2421.6,2421.4,1.9016]
[1726362310451,0.3853,2421.5,2421.4,2.23187]
[1726362310653,0.3853,2421.5,2421.4,1.9016]
[1726362313450,0.3853,2421.5,2421.4,0.4116]
[1726362325660,0.3975,2421.7,2421.6,0.33024]
[1726362325964,0.3975,2421.7,2421.5,1.82025]
[1726362326162,0.3975,2421.7,2421.5,2.21685]
[1726362328862,0.3975,2421.7,2421.5,1.8866]
[1726362329763,0.3975,2421.7,2421.5,2.21685]
[1726362330464,0.3975,2421.7,2421.4,0.4116]
[1726362330769,0.4122,2421.6,2421.4,1.9016]
[1726362335365,0.4122,2421.6,2421.4,0.4116]
[1726362335571,0.3802,2421.5,2421.4,0.4116]
[1726362336660,0.3802,2421.5,2421.2,4.6978]
[1726362336865,0.3802,2421.5,2421.2,5.0702]
[1726362337461,0.33027,2421.4,2421.0,1.586]
[1726362337664,0.3805,2421.3,2421.0,1.8624]
[1726362337866,0.769,2421.3,2421.0,1.8624]
[1726362338271,1.09928,2421.3,2421.0,1.8624]
[1726362338577,0.769,2421.3,2421.0,1.8624]
[1726362338874,3.9768,2421.3,2421.0,1.8624]
[1726362339077,0.769,2421.3,2421.0,1.8624]
[1726362339265,3.9768,2421.3,2421.0,1.8624]
[1726362343272,0.769,2421.3,2421.0,1.8624]
[1726362344664,1.09928,2421.3,2421.0,1.8624]
[1726362344869,0.769,2421.3,2421.0,1.8624]
[1726362345472,1.09928,2421.3,2421.0,1.8624]
[1726362346076,0.769,2421.3,2421.0,1.8624]
[1726362346270,1.09928,2421.3,2421.0,1.8624]
[1726362346578,0.769,2421.3,2421.0,1.8624]
[1726362350983,0.769,2421.3,2421.0,2.19272]
[1726362351195,0.3805,2421.3,2421.2,1.49]
[1726362352889,3.588,2421.5,2421.2,1.82029]
[1726362353092,0.3767,2421.6,2421.2,1.82029]
[1726362353093,0.7681,2421.6,2421.4,1.49]
[1726362353286,0.7681,2421.6,2421.5,0.4076]
[1726362353287,0.3914,2421.6,2421.5,0.4076]
[1726362371191,0.3914,2421.6,2421.5,1.8976]
[1726362380007,0.3914,2421.6,2421.3,5.02808]
[1726362380307,0.3864,2421.5,2421.4,0.33027]
[1726362382508,0.3914,2421.6,2421.5,0.33025]
[1726362382713,0.42618,2422.1,2421.5,4.1296]
[1726362382714,0.1916525,2422.1,2421.5,4.1296]
[1726362382910,0.111,2422.7,2422.3,0.33014]
[1726362383112,0.7886,2423.2,2422.6,1.49]
[1726362383113,1.11863,2423.2,2422.6,1.49]
[1726362383314,0.7886,2423.2,2422.6,1.49]
[1726362383515,3.2078,2423.0,2422.6,1.49]
[1726362384520,0.7886,2423.2,2422.6,1.49]
[1726362384717,3.2078,2423.0,2422.6,1.49]
[1726362386613,1.49,2422.7,2422.4,3.6005]
[1726362386821,0.7969,2422.6,2422.4,3.6005]
[1726362387719,0.7969,2422.6,2422.4,5.0905]
[1726362390523,0.7969,2422.6,2422.4,1.8827]
[1726362392328,0.7969,2422.6,2422.2,1.586]
[1726362392532,0.7969,2422.6,2422.3,0.4019]
[1726362403036,0.4061,2422.5,2422.3,0.4019]
[1726362406429,0.4061,2422.5,2422.1,3.2078]
[1726362406630,1.8961,2422.5,2422.1,3.2078]
[1726362406933,2.22622,2422.5,2422.0,0.3892]
[1726362407528,0.33013,2422.4,2422.0,0.3892]
[1726362407930,0.4053,2422.3,2422.0,0.3892]
[1726362408137,0.408,2422.2,2422.0,0.3892]
[1726362409539,0.3866,2422.1,2422.0,0.3892]
[1726362412144,0.3866,2422.1,2421.8,3.2078]
[1726362412350,0.3949,2422.0,2421.9,0.384]
[1726362416446,0.3949,2422.0,2421.9,1.874]
[1726362418248,0.3866,2422.1,2421.9,1.874]
[1726362418549,0.3866,2422.1,2421.9,2.20419]
[1726362420850,0.3866,2422.1,2422.0,0.33018]
[1726362435554,0.3866,2422.1,2421.9,1.874]
[1726362435753,0.3866,2422.1,2422.0,0.33018]
[1726362436557,0.3866,2422.1,2421.9,1.874]
[1726362436558,0.408,2422.2,2422.1,0.33017]
[1726362437056,0.408,2422.2,2422.1,1.82017]
[1726362437569,0.408,2422.2,2422.1,5.02797]
[1726362438565,0.4073,2422.4,2422.3,0.33014]
[1726362443768,0.4068,2422.5,2422.4,0.33013]
[1726362443957,0.4068,2422.5,2422.4,1.82013]
[1726362444155,0.4068,2422.5,2422.4,0.33013]
[1726362444775,0.8086,2422.5,2422.4,0.33013]
[1726362456677,0.8086,2422.5,2422.3,0.33014]
[1726362456878,0.8086,2422.5,2422.4,0.33013]
[1726362469183,0.8086,2422.5,2422.2,0.4091]
[1726362469884,0.8086,2422.5,2422.2,0.73925]
[1726362471383,0.8086,2422.5,2422.3,0.33014]
[1726362471780,0.8086,2422.5,2422.1,0.33016]
[1726362472380,0.8086,2422.5,2422.2,0.33016]
[1726362480494,0.8086,2422.5,2422.3,0.4071]
[1726362482987,0.8086,2422.5,2422.3,1.8971]
[1726362483187,0.8086,2422.5,2422.3,5.43504]
[1726362483392,0.8086,2422.5,2422.4,0.33013]
[1726362485187,3.53787,2422.9,2422.5,0.33012]
[1726362485494,0.7866,2422.8,2422.5,0.33012]
[1726362485690,1.1647,2422.8,2422.6,0.4089]
[1726362488388,1.1647,2422.8,2422.6,0.73899]
[1726362495692,1.1647,2422.8,2422.4,0.33012]
[1726362495894,1.1647,2422.8,2422.5,0.3958]
[1726362499297,1.1647,2422.8,2422.5,2.21591]
[1726362500402,1.1647,2422.8,2422.6,0.3301]
[1726362500905,1.1647,2422.8,2422.6,1.49]
[1726362500906,0.7866,2422.8,2422.6,1.49]
[1726362501107,0.7866,2422.8,2422.7,0.33009]
[1726362503307,0.4057,2423.0,2422.8,0.33007]
[1726362503609,0.4057,2423.0,2422.9,0.3805]
[1726362507507,0.8043,2423.1,2423.0,0.33005]
[1726362508197,0.8043,2423.1,2422.9,0.3805]
[1726362508403,0.4104,2423.0,2422.9,0.3805]
[1726362517712,0.4104,2423.0,2422.9,0.71056]
[1726362520623,0.4104,2423.0,2422.9,0.3805]
[1726362522622,0.4104,2423.0,2422.9,0.71056]
[1726362529525,0.4104,2423.0,2422.9,0.3805]
[1726362533736,0.4104,2423.0,2422.9,0.71056]
[1726362534139,0.4104,2423.0,2422.9,0.3805]
[1726362538533,0.4104,2423.0,2422.9,0.71056]
[1726362539741,0.8043,2423.1,2422.9,0.71056]
[1726362549037,0.8043,2423.1,2422.9,0.3805]
[1726362549242,0.8043,2423.1,2422.9,0.71056]
[1726362549243,4.5990894,2423.1,2422.9,0.71056]
[1726362556144,4.5990894,2423.1,2422.9,0.33006]
[1726362556339,4.5990894,2423.1,2422.8,4.6177354]
[1726362556340,0.8043,2423.1,2422.8,4.6177354]
[1726362556657,0.8043,2423.1,2422.9,0.33006]
[1726362571453,4.5990894,2423.1,2422.9,0.33006]
[1726362576266,4.5990894,2423.1,2422.8,0.33007]
[1726362578459,0.8043,2423.1,2422.8,1.4099354]
[1726362579973,0.8043,2423.1,2422.9,0.33006]
[1726362580274,0.8043,2423.1,2422.8,1.4099354]
[1726362586374,0.8043,2423.1,2422.8,0.33007]
[1726362586569,4.5990894,2423.1,2422.8,0.33007]
[1726362588884,4.5990894,2423.1,2422.7,3.5873]
[1726362589073,4.5990894,2423.1,2422.8,0.93758588]
[1726362589273,4.5990894,2423.1,2422.8,0.33007]
[1726362589780,4.5990894,2423.1,2422.8,3.53787]
[1726362590580,4.5990894,2423.1,2422.8,0.33007]
[1726362590882,4.5990894,2423.1,2422.7,3.91738]
[1726362591183,4.5990894,2423.1,2422.8,0.93759511]
[1726362591487,4.5990894,2423.1,2422.8,0.33008]
[1726362593374,4.5990894,2423.1,2422.8,1.4099454]
[1726362593578,0.8043,2423.1,2422.9,0.33006]
[1726362593780,0.8043,2423.1,2422.8,1.0798654]
[1726362593981,0.8043,2423.1,2422.9,0.60752568]
[1726362594184,0.8043,2423.1,2422.8,1.4099354]
[1726362594479,0.8043,2423.1,2422.9,0.60752302]
[1726362594685,0.8043,2423.1,2422.8,1.4099354]
[1726362594886,0.8043,2423.1,2422.9,0.60753207]
[1726362595082,0.8043,2423.1,2422.8,1.4099354]
[1726362595287,0.8043,2423.1,2422.9,0.6075319]
[1726362595488,0.8043,2423.1,2422.8,1.4099354]
[1726362595783,0.8043,2423.1,2422.9,0.60752611]
[1726362595985,0.8043,2423.1,2422.8,1.4099354]
[1726362596483,0.8043,2423.1,2422.9,0.60752085]
[1726362596687,0.8043,2423.1,2422.8,1.4099354]
[1726362596889,0.8043,2423.1,2422.9,0.60753125]
[1726362597083,0.8043,2423.1,2422.8,1.4099354]
[1726362597284,0.8043,2423.1,2422.9,0.60753144]
[1726362597486,0.8043,2423.1,2422.8,1.4099354]
[1726362597682,0.8043,2423.1,2422.9,0.60752129]
[1726362597980,0.8043,2423.1,2422.8,1.4099354]
[1726362598287,0.8043,2423.1,2422.9,0.6075253]
[1726362598488,0.8043,2423.1,2422.8,1.4099354]
[1726362598686,0.8043,2423.1,2422.9,0.60752932]
[1726362598992,0.8043,2423.1,2422.8,1.4099354]
[1726362599190,0.8043,2423.1,2422.9,0.60752896]
[1726362599483,0.8043,2423.1,2422.8,1.4099354]
[1726362599690,0.8043,2423.1,2422.9,0.60751967]
[1726362599884,0.8043,2423.1,2422.8,1.4099354]
[1726362601086,0.8043,2423.1,2422.8,1.0798654]
[1726362601289,3.7947894,2423.4,2423.0,4.2876654]
[1726362601483,4.9692894,2423.5,2423.3,1.82]
[1726362601679,4.9692894,2423.5,2423.4,0.70619]
[1726362601680,0.7958,2423.5,2423.4,0.70619]
[1726362601879,3.2078,2423.7,2423.5,0.32997]
[1726362602185,3.2078,2423.7,2423.4,4.5026]
[1726362602186,3.2078,2423.7,2423.4,2.19619]
[1726362602381,0.7958,2423.6,2423.4,0.70619]
[1726362605188,0.7958,2423.6,2423.4,2.19619]
[1726362608385,0.7958,2423.6,2423.5,0.32998]
[1726362611699,0.7958,2423.6,2423.4,5.074]
[1726362611897,0.7958,2423.6,2423.5,0.32998]
[1726362616888,0.7958,2423.6,2423.4,5.074]
[1726362616889,0.7958,2423.6,2423.4,5.40399]
[1726362617301,0.4121,2423.5,2423.4,5.40399]
[1726362618106,0.4121,2423.5,2423.4,0.3762]
[1726362618301,0.4121,2423.5,2423.4,2.19619]
[1726362619202,0.4121,2423.5,2423.4,1.81999]
[1726362620590,0.4121,2423.5,2423.3,0.4013]
[1726362620799,0.74209,2423.5,2423.1,0.33003]
[1726362620992,0.4121,2423.5,2423.2,0.33002]
[1726362621197,0.4121,2423.5,2423.2,1.82002]
[1726362622294,0.4121,2423.5,2423.3,0.3965]
[1726362623600,0.4121,2423.5,2423.3,0.72651]
[1726362624805,0.7958,2423.6,2423.5,0.32998]
[1726362624998,0.7958,2423.6,2423.5,1.81998]
[1726362625207,0.7958,2423.6,2423.5,5.02778]
[1726362627198,0.7958,2423.6,2423.5,1.81998]
[1726362627706,0.7958,2423.6,2423.5,5.02778]
[1726362638112,3.53769,2424.2,2423.8,0.32994]
[1726362638417,0.7627,2423.9,2423.8,0.32994]
[1726362638916,5.2751694,2424.3,2423.9,0.32992]
[1726362639105,1.48038,2424.3,2423.9,0.32992]
[1726362639508,1.1505,2424.3,2423.9,0.32992]
[1726362639820,1.48037,2424.3,2423.9,0.32992]
[1726362640017,1.48037,2424.3,2424.0,1.49]
[1726362640415,1.1505,2424.3,2424.0,1.49]
[1726362643520,4.9452894,2424.3,2424.0,1.8199]
[1726362643718,1.1505,2424.3,2424.0,1.49]
[1726362644419,1.48037,2424.3,2424.0,1.49]
[1726362644617,5.2751594,2424.3,2424.0,1.49]
[1726362646821,1.48037,2424.3,2424.0,1.49]
[1726362652528,1.1505,2424.3,2424.0,1.49]
[1726362652930,0.32989,2424.2,2424.0,1.49]
[1726362653725,0.32989,2424.2,2423.8,5.02773]
[1726362653924,0.32989,2424.2,2423.6,0.32996]
[1726362653925,0.32991,2424.1,2423.6,0.32996]